[Event "Vasteras Open Minor 2018"]
[Site "Vasteras"]
[Date "2018.09.30"]
[Round "7"]
[White "Ohlund, Anders"]
[Black "Davidsson, Joshua"]
[Result "1/2-1/2"]
[ECO "D02"]
[WhiteElo "1483"]
[BlackElo "1500"]
[Annotator "NA RC"]
[PlyCount "135"]
[EventDate "2018.09.28"]
[EventCountry "SWE"]
[SourceTitle "playchess.com"]
[Source "ChessBase"]
[SourceQuality "1"]
[TimeControl "5400+30"]

1. d4 {[%emt 0:00:00]} d5 {[%emt 0:00:00]} 2. Nf3 {[%emt 0:00:00]} Nf6 {[%emt 0:01:10]} 3. Bf4 {[%emt 0:00:00]} Bf5 {[%emt 0:00:09]} 4. e3 {[%emt 0:00:41]} e6 {[%emt 0:00:22]} 5. Bd3 {[%emt 0:01:26]} Bxd3 {[%emt 0:02:09]} 6. Qxd3 {[%emt 0:00:08]} Bd6 {[%emt 0:00:07]} 7. Bxd6 {[%emt 0:03:05]} Qxd6 {[%emt 0:02:27]} 8. Qb5+ {[%emt 0:02:59]} Qc6 {[%emt 0:00:21]} 9. Qxc6+ {[%emt 0:01:14]} Nxc6 {[%emt 0:00:01]} 10. c3 {[%emt 0:01:25]} O-O {[%emt 0:00:59]} 11. O-O {[%emt 0:01:26]} Rfe8 {[%emt 0:02:34]} 12. Nbd2 {[%emt 0:02:42]} e5 {[%emt 0:01:28]} 13. dxe5 {[%emt 0:03:04]} Nxe5 {[%emt 0:00:24]} 14. Nxe5 {[%emt 0:01:08]} Rxe5 {[%emt 0:00:03]} 15. Nf3 {[%emt 0:03:08]} Ree8 {[%emt 0:00:56]} 16. Rad1 {[%emt 0:00:55]} Rad8 {[%emt 0:00:40]} 17. Rfe1 {[%emt 0:07:02]} c5 {[%emt 0:00:37]} 18. h3 {[%emt 0:02:34]} h6 {[%emt 0:01:26]} 19. a3 {[%emt 0:02:05]} b5 {[%emt 0:00:47]} 20. b4 {[%emt 0:03:24]} c4 {[%emt 0:08:14]} 21. Nd4 {[%emt 0:02:34]} a6 {[%emt 0:00:31]} 22. f3 {[%emt 0:02:22]} Rd7 {[%emt 0:05:43]} 23. Kf2 {[%emt 0:03:35]} Rde7 {[%emt 0:04:19]} 24. Nc6 {[%emt 0:03:12]} Rc7 {[%emt 0:03:04]} 25. Nd4 {[%emt 0:00:18]} Nd7 {[%emt 0:00:57]} 26. Ne2 {[%emt 0:05:36]} Nb6 {[%emt 0:00:50]} 27. Nf4 {[%emt 0:01:47]} Rd7 {[%emt 0:01:09]} 28. Rd2 {[%emt 0:03:10]} f5 {[%emt 0:09:44]} 29. Red1 {[%emt 0:02:25]} Rde7 {[%emt 0:12:51]} 30. Re1 {[%emt 0:03:51]} Re5 {[%emt 0:03:59]} 31. Ng6 {[%emt 0:03:14]} R5e6 {[%emt 0:00:43]} 32. Nf4 {[%emt 0:00:04]} Rd6 {[%emt 0:00:45]} 33. g4 {[%emt 0:00:49]} g5 {[%emt 0:02:29]} 34. Ng2 {[%emt 0:01:06]} fxg4 {[%emt 0:01:44]} 35. hxg4 {[%emt 0:00:20]} Ree6 {[%emt 0:06:16]} 36. Rde2 {[%emt 0:03:59]} Nd7 {[%emt 0:01:17]} 37. Rd1 {[%emt 0:01:09]} Nf6 {[%emt 0:01:58]} 38. Red2 {[%emt 0:02:26]} Re5 {[%emt 0:05:59]} 39. Re2 {[%emt 0:02:02]} Kf7 {[%emt 0:01:20]} 40. Rde1 {[%emt 0:01:35]} Ke8 {[%emt 0:01:11]} 41. Kg3 {[%emt 0:02:28]} Kd7 {[%emt 0:00:56]} 42. Rd1 {[%emt 0:01:15]} Kc6 {[%emt 0:00:35]} 43. Rde1 {[%emt 0:00:11]} Kb6 {[%emt 0:02:07]} 44. Kf2 {[%emt 0:00:36]} Ree6 {[%emt 0:01:10]} 45. Kg3 {[%emt 0:00:42]} Nd7 {[%emt 0:00:16]} 46. Rf2 {[%emt 0:02:29]} Ne5 {[%emt 0:00:20]} 47. Rfe2 {[%emt 0:02:04]} Nd3 {[%emt 0:01:17]} 48. Rd1 {[%emt 0:00:30]} Rd7 {[%emt 0:01:24]} 49. Ne1 {[%emt 0:01:10]} Nxe1 {[%emt 0:00:29]} 50. Rdxe1 {[%emt 0:00:12]} Rde7 {[%emt 0:00:12]} 51. Kf2 {[%emt 0:01:10]} Rf7 {[%emt 0:00:49]} 52. Kg2 {[%emt 0:00:34]} Ref6 {[%emt 0:00:23]} 53. Rf1 {[%emt 0:00:20]} a5 {[%emt 0:00:06]} 54. Kg3 {[%emt 0:01:23]} axb4 {[%emt 0:00:23]} 55. axb4 {[%emt 0:00:12]} Ra7 {[%emt 0:00:54]} 56. Rc2 {[%emt 0:01:52]} Kc6 {[%emt 0:01:12]} 57. Kg2 {[%emt 0:01:20]} Kd7 {[%emt 0:00:38]} 58. Kg3 {[%emt 0:00:45]} Ke7 {[%emt 0:00:16]} 59. Kg2 {[%emt 0:00:33]} Rfa6 {[%emt 0:00:41]} 60. Rh1 {[%emt 0:01:28]} Ra2 {[%emt 0:00:38]} 61. Rhc1 {[%emt 0:01:00]} Rxc2+ {[%emt 0:00:15]} 62. Rxc2 {[%emt 0:00:05]} Kf6 {[%emt 0:00:05]} 63. f4 {[%emt 0:01:47]} Ra3 {[%emt 0:00:30]} 64. Kf3 {[%emt 0:01:11]} Ra1 {[%emt 0:00:35]} 65. Kf2 {[%emt 0:01:54]} Ke6 {[%emt 0:02:04]} 66. Kg2 {[%emt 0:00:49]} Kf6 {[%emt 0:00:31]} 67. Kf2 {[%emt 0:00:10]} Ke6 {[%emt 0:00:13]} 68. Kg2 {[%emt 0:00:08] Ke5} 1/2-1/2

[Event "Vasteras Open Minor 2018"]
[Site "Vasteras"]
[Date "2018.09.30"]
[Round "7"]
[White "Evensen, Per-Erik"]
[Black "Arnason, Saemundur"]
[Result "0-1"]
[ECO "B92"]
[WhiteElo "1472"]
[BlackElo "1312"]
[Annotator "NA RC"]
[PlyCount "102"]
[EventDate "2018.09.28"]
[EventCountry "SWE"]
[SourceTitle "playchess.com"]
[Source "ChessBase"]
[SourceQuality "1"]
[TimeControl "5400+30"]

1. e4 {[%emt 0:00:00]} c5 {[%emt 0:00:05]} 2. Nf3 {[%emt 0:00:00]} d6 {[%emt 0:00:24]} 3. d4 {[%emt 0:00:13]} cxd4 {[%emt 0:00:07]} 4. Nxd4 {[%emt 0:00:08]} Nf6 {[%emt 0:00:08]} 5. Nc3 {[%emt 0:00:17]} a6 {[%emt 0:00:28]} 6. Be2 {[%emt 0:02:28]} g6 {[%emt 0:00:24]} 7. Be3 {[%emt 0:01:19]} Bg7 {[%emt 0:00:26]} 8. Qd2 {[%emt 0:01:51]} h6 {[%emt 0:02:45]} 9. O-O-O {[%emt 0:05:38]} Nbd7 {[%emt 0:07:20]} 10. h3 {[%emt 0:03:12]} Qc7 {[%emt 0:03:24]} 11. g4 {[%emt 0:02:59]} Nc5 {[%emt 0:13:53]} 12. Bf3 {[%emt 0:06:20]} Bd7 {[%emt 0:07:44]} 13. Kb1 {[%emt 0:07:12]} Rb8 {[%emt 0:04:26]} 14. Nb3 {[%emt 0:06:43]} b6 {[%emt 0:08:20]} 15. Rhe1 {[%emt 0:11:09]} Bc6 {[%emt 0:07:08]} 16. Bf4 {[%emt 0:03:53]} Nfd7 {[%emt 0:03:22]} 17. Nd5 {[%emt 0:06:20]} Bxd5 {[%emt 0:01:39]} 18. Qxd5 {[%emt 0:01:33]} Ne5 {[%emt 0:01:20]} 19. Bxe5 {[%emt 0:06:16]} Bxe5 {[%emt 0:00:35]} 20. Bg2 {[%emt 0:02:09]} Ne6 {[%emt 0:02:40]} 21. Bf1 {[%emt 0:02:10]} b5 {[%emt 0:02:36]} 22. c3 {[%emt 0:04:45]} Qb6 {[%emt 0:02:17]} 23. Re2 {[%emt 0:02:05]} Nf4 {[%emt 0:00:32]} 24. Qd2 {[%emt 0:00:51]} Nxe2 {[%emt 0:00:13]} 25. Bxe2 {[%emt 0:00:13]} g5 {[%emt 0:01:15]} 26. Nd4 {[%emt 0:02:35]} Bxd4 {[%emt 0:01:52]} 27. cxd4 {[%emt 0:00:40]} e6 {[%emt 0:04:30]} 28. f4 {[%emt 0:02:21]} f6 {[%emt 0:01:05]} 29. e5 {[%emt 0:02:47]} dxe5 {[%emt 0:00:37]} 30. fxe5 {[%emt 0:02:28]} fxe5 {[%emt 0:00:49]} 31. dxe5 {[%emt 0:01:56]} Rd8 {[%emt 0:00:12]} 32. Qc2 {[%emt 0:01:01]} Rxd1+ {[%emt 0:02:10]} 33. Bxd1 {[%emt 0:01:07]} Qd8 {[%emt 0:02:17]} 34. Qg6+ {[%emt 0:01:02]} Kd7 {[%emt 0:00:44]} 35. Bb3 {[%emt 0:00:37]} Qe7 {[%emt 0:01:04]} 36. Qd3+ {[%emt 0:00:47]} Ke8 {[%emt 0:02:32]} 37. Qe4 {[%emt 0:01:43]} Qh7 {[%emt 0:00:29]} 38. Qxh7 {[%emt 0:00:28]} Rxh7 {[%emt 0:00:05]} 39. Bxe6 {[%emt 0:00:19]} Rc7 {[%emt 0:01:27]} 40. Bf5 {[%emt 0:00:56]} Rc5 {[%emt 0:01:24]} 41. e6 {[%emt 0:00:38]} a5 {[%emt 0:01:49]} 42. a3 {[%emt 0:01:18]} Re5 {[%emt 0:00:30]} 43. b4 {[%emt 0:01:51]} axb4 {[%emt 0:00:51]} 44. axb4 {[%emt 0:00:10]} Ke7 {[%emt 0:00:41]} 45. Bd3 {[%emt 0:01:53]} Kxe6 {[%emt 0:00:33]} 46. Bf5+ {[%emt 0:00:46]} Rxf5 {[%emt 0:00:32]} 47. gxf5+ {[%emt 0:00:11]} Kxf5 {[%emt 0:00:01]} 48. Kc2 {[%emt 0:00:19]} Ke4 {[%emt 0:00:24]} 49. Kc3 {[%emt 0:00:14]} Ke3 {[%emt 0:00:31]} 50. Kc2 {[%emt 0:00:38]} h5 {[%emt 0:00:06]} 51. Kc3 {[%emt 0:00:14]} g4 {[%emt 0:00:06]} 0-1

[Event "Vasteras Open Minor 2018"]
[Site "Vasteras"]
[Date "2018.09.30"]
[Round "7"]
[White "Tabor, Matvey"]
[Black "Olsson, Dick"]
[Result "0-1"]
[ECO "C50"]
[WhiteElo "1452"]
[BlackElo "1554"]
[Annotator "NA RC"]
[PlyCount "34"]
[EventDate "2018.09.28"]
[EventCountry "SWE"]
[SourceTitle "playchess.com"]
[Source "ChessBase"]
[SourceQuality "1"]
[TimeControl "5400+30"]

1. e4 {[%emt 0:05:10]} e5 {[%emt 0:00:00]} 2. Nf3 {[%emt 0:00:06]} Nc6 {[%emt 0:00:00]} 3. Bc4 {[%emt 0:00:07]} Nd4 {[%emt 0:00:31]} 4. Nxd4 {[%emt 0:00:14]} exd4 {[%emt 0:00:03]} 5. O-O {[%emt 0:00:08]} Nf6 {[%emt 0:02:03]} 6. e5 {[%emt 0:00:15]} d5 {[%emt 0:00:29]} 7. exf6 {[%emt 0:00:46]} dxc4 {[%emt 0:00:11]} 8. Re1+ {[%emt 0:00:06]} Be6 {[%emt 0:00:20]} 9. fxg7 {[%emt 0:01:22]} Bxg7 {[%emt 0:00:07]} 10. b3 {[%emt 0:00:36]} d3 {[%emt 0:01:00]} 11. Nc3 {[%emt 0:00:22]} Qg5 {[%emt 0:03:23]} 12. bxc4 {[%emt 0:01:31]} O-O-O {[%emt 0:01:38]} 13. Qf3 {[%emt 0:00:36]} Bxc3 {[%emt 0:00:39]} 14. dxc3 {[%emt 0:00:37]} d2 {[%emt 0:00:09]} 15. Bxd2 {[%emt 0:00:11]} Qxd2 {[%emt 0:00:29]} 16. Rab1 {[%emt 0:01:38]} c6 {[%emt 0:02:15]} 17. Rb4 {[%emt 0:01:45]} Qxe1# {[%emt 0:00:10]} 0-1

[Event "Vasteras Open Minor 2018"]
[Site "Vasteras"]
[Date "2018.09.30"]
[Round "7"]
[White "Backlund, Elias"]
[Black "Seo, Jung Hyun"]
[Result "1-0"]
[ECO "D35"]
[WhiteElo "1329"]
[BlackElo "1389"]
[Annotator "NA RC"]
[PlyCount "59"]
[EventDate "2018.09.28"]
[EventCountry "SWE"]
[SourceTitle "playchess.com"]
[Source "ChessBase"]
[SourceQuality "1"]
[TimeControl "5400+30"]

1. d4 {[%emt 0:00:00]} Nf6 {[%emt 0:00:00]} 2. c4 {[%emt 0:00:01]} e6 {[%emt 0:00:00]} 3. Nc3 {[%emt 0:00:35]} d5 {[%emt 0:00:03]} 4. Bf4 {[%emt 0:01:29]} c6 {[%emt 0:00:44]} 5. e3 {[%emt 0:00:38]} Bd6 {[%emt 0:01:05]} 6. Bxd6 {[%emt 0:01:27]} Qxd6 {[%emt 0:00:08]} 7. Nf3 {[%emt 0:01:13]} Nbd7 {[%emt 0:02:31]} 8. Bd3 {[%emt 0:01:02]} b6 {[%emt 0:01:30]} 9. cxd5 {[%emt 0:02:05]} Nxd5 {[%emt 0:03:49]} 10. Rc1 {[%emt 0:05:00]} Nxc3 {[%emt 0:02:19]} 11. Rxc3 {[%emt 0:02:28]} Bb7 {[%emt 0:06:29]} 12. O-O {[%emt 0:06:51]} e5 {[%emt 0:18:50]} 13. Bf5 {[%emt 0:07:11]} exd4 {[%emt 0:05:02]} 14. Bxd7+ {[%emt 0:02:27]} Qxd7 {[%emt 0:00:37]} 15. Qxd4 {[%emt 0:01:38]} Qxd4 {[%emt 0:01:35]} 16. Nxd4 {[%emt 0:01:23]} c5 {[%emt 0:02:32]} 17. Nf5 {[%emt 0:03:20]} O-O {[%emt 0:01:52]} 18. Rd1 {[%emt 0:05:32]} Rfd8 {[%emt 0:01:44]} 19. Rcc1 {[%emt 0:02:01]} g6 {[%emt 0:03:09]} 20. Ng3 {[%emt 0:02:54]} Kg7 {[%emt 0:03:59]} 21. f3 {[%emt 0:02:06]} f5 {[%emt 0:01:34]} 22. Kf2 {[%emt 0:03:10]} Kh6 {[%emt 0:03:44]} 23. h4 {[%emt 0:03:43]} Bd5 {[%emt 0:02:26]} 24. b3 {[%emt 0:03:18]} a5 {[%emt 0:03:10]} 25. Rd2 {[%emt 0:03:42]} Bg8 {[%emt 0:02:58]} 26. Rcd1 {[%emt 0:02:10]} Rxd2+ {[%emt 0:00:19]} 27. Rxd2 {[%emt 0:00:08]} a4 {[%emt 0:00:04]} 28. Rd6 {[%emt 0:02:15]} axb3 {[%emt 0:00:19]} 29. Nxf5+ {[%emt 0:00:20]} Kh5 30. g4# {Kh6} 1-0

[Event "Vasteras Open Minor 2018"]
[Site "Vasteras"]
[Date "2018.09.30"]
[Round "7"]
[White "Jonsson, Kristjan Dagur"]
[Black "Laine, Jacob"]
[Result "0-1"]
[ECO "A25"]
[WhiteElo "1267"]
[BlackElo "1591"]
[Annotator "NA RC"]
[PlyCount "112"]
[EventDate "2018.09.28"]
[EventCountry "SWE"]
[SourceTitle "playchess.com"]
[Source "ChessBase"]
[SourceQuality "1"]
[TimeControl "5400+30"]

1. c4 e5 {[%emt 0:00:00]} 2. Nc3 {[%emt 0:00:54]} Nc6 {[%emt 0:00:00]} 3. g3 {[%emt 0:00:15]} g6 {[%emt 0:00:00]} 4. Bg2 {[%emt 0:00:18]} Bg7 {[%emt 0:00:00]} 5. e3 {[%emt 0:00:44]} f5 {[%emt 0:00:02]} 6. Nge2 {[%emt 0:02:26]} Nf6 {[%emt 0:00:53]} 7. d4 {[%emt 0:04:10]} d6 {[%emt 0:00:04]} 8. dxe5 {[%emt 0:07:09]} Nxe5 {[%emt 0:03:17]} 9. b3 {[%emt 0:03:12]} Nfd7 {[%emt 0:01:01]} 10. Bb2 {[%emt 0:03:25]} Nc5 {[%emt 0:02:15]} 11. O-O {[%emt 0:05:08]} O-O {[%emt 0:01:31]} 12. Nf4 {[%emt 0:03:00]} Rb8 {[%emt 0:03:05]} 13. b4 {[%emt 0:09:08]} Ne6 {[%emt 0:06:22]} 14. Bd5 {[%emt 0:04:45]} Re8 {[%emt 0:00:01]} 15. c5 {[%emt 0:05:58]} dxc5 {[%emt 0:19:02]} 16. bxc5 {[%emt 0:10:04]} c6 {[%emt 0:00:55]} 17. Nxe6 {[%emt 0:04:45]} Bxe6 {[%emt 0:00:24]} 18. Bxe6+ {[%emt 0:02:16]} Rxe6 {[%emt 0:00:02]} 19. Qxd8+ {[%emt 0:03:02]} Rxd8 {[%emt 0:00:03]} 20. Rad1 {[%emt 0:01:16]} Ree8 {[%emt 0:00:58]} 21. Ne2 {[%emt 0:03:26]} Nf3+ {[%emt 0:02:57]} 22. Kg2 {[%emt 0:00:09]} Bxb2 {[%emt 0:02:27]} 23. Kxf3 {[%emt 0:00:43]} Ba3 {[%emt 0:00:38]} 24. Rxd8 {[%emt 0:01:02]} Rxd8 {[%emt 0:00:05]} 25. Nd4 {[%emt 0:00:23]} Bxc5 {[%emt 0:04:53]} 26. Ne6 {[%emt 0:03:36]} Rd5 {[%emt 0:00:04]} 27. Nxc5 {[%emt 0:01:28]} Rxc5 {[%emt 0:00:02]} 28. Rd1 {[%emt 0:01:32]} Rb5 {[%emt 0:00:17]} 29. Rd8+ {[%emt 0:00:36]} Kg7 {[%emt 0:00:11]} 30. Rd7+ {[%emt 0:00:47]} Kh6 {[%emt 0:01:11]} 31. a4 {[%emt 0:01:29]} Rb4 {[%emt 0:00:54]} 32. a5 {[%emt 0:00:34]} a6 {[%emt 0:05:04]} 33. h3 {[%emt 0:01:44]} c5 {[%emt 0:11:58]} 34. g4 {[%emt 0:01:22]} c4 {[%emt 0:04:59]} 35. Rc7 {[%emt 0:01:23]} Rb5 {[%emt 0:03:06]} 36. Kg3 {[%emt 0:01:19]} c3 {[%emt 0:02:18]} 37. Rxc3 {[%emt 0:02:10]} Rxa5 {[%emt 0:00:08]} 38. Rc7 {[%emt 0:00:39]} Rb5 {[%emt 0:00:55]} 39. Kh4 {[%emt 0:01:41]} fxg4 {[%emt 0:02:25]} 40. hxg4 {[%emt 0:00:26]} g5+ {[%emt 0:00:03]} 41. Kg3 {[%emt 0:00:41]} a5 {[%emt 0:01:17]} 42. Rc3 {[%emt 0:01:18]} a4 {[%emt 0:02:40]} 43. f4 {[%emt 0:02:15]} gxf4+ {[%emt 0:01:38]} 44. Kxf4 {[%emt 0:00:15]} Ra5 {[%emt 0:00:14]} 45. Ke4 {[%emt 0:01:52]} a3 {[%emt 0:01:20]} 46. Rc1 {[%emt 0:00:25]} a2 {[%emt 0:00:16]} 47. Ra1 {[%emt 0:00:03]} Kg5 {[%emt 0:01:06]} 48. Kd4 {[%emt 0:00:56]} Kxg4 {[%emt 0:00:36]} 49. e4 h5 {[%emt 0:01:33]} 50. e5 {[%emt 0:01:34]} Kf5 {[%emt 0:00:03]} 51. Rf1+ {[%emt 0:02:22]} Ke6 {[%emt 0:00:11]} 52. Ra1 {[%emt 0:00:33]} h4 {[%emt 0:00:09]} 53. Ke4 {[%emt 0:00:16]} Rxe5+ {[%emt 0:00:35]} 54. Kf4 {[%emt 0:00:19]} Ra5 {[%emt 0:00:12]} 55. Kg4 Ra4+ {[%emt 0:00:06]} 56. Kh3 {[%emt 0:00:57]} Kd5 {[%emt 0:00:08]} 0-1

[Event "Vasteras Open Minor 2018"]
[Site "Vasteras"]
[Date "2018.09.30"]
[Round "8"]
[White "Laine, Jacob"]
[Black "Platkovs, Daniils"]
[Result "1/2-1/2"]
[ECO "D00"]
[WhiteElo "1591"]
[BlackElo "1257"]
[Annotator "NA"]
[PlyCount "51"]
[EventDate "2018.09.28"]
[EventCountry "SWE"]
[SourceTitle "playchess.com"]
[Source "ChessBase"]
[SourceQuality "1"]
[TimeControl "5400+30"]

1. d4 {[%emt 0:00:00]} d5 {[%emt 0:00:00]} 2. Bf4 {[%emt 0:00:00]} Nf6 {[%emt 0:00:18]} 3. e3 {[%emt 0:00:00]} e6 {[%emt 0:00:30]} 4. Nf3 {[%emt 0:00:00]} c5 {[%emt 0:00:48]} 5. Bd3 {[%emt 0:02:11]} c4 {[%emt 0:01:43]} 6. Be2 {[%emt 0:00:01]} Nc6 {[%emt 0:01:39]} 7. O-O {[%emt 0:01:44]} Be7 {[%emt 0:01:09]} 8. b3 {[%emt 0:00:33]} b5 {[%emt 0:01:30]} 9. Nc3 {[%emt 0:01:54]} a6 {[%emt 0:01:04]} 10. a4 {[%emt 0:00:56]} b4 {[%emt 0:02:04]} 11. Nb5 {[%emt 0:05:03]} axb5 {[%emt 0:01:43]} 12. axb5 {[%emt 0:00:02]} Rxa1 {[%emt 0:01:13]} 13. Qxa1 {[%emt 0:00:00]} Na5 {[%emt 0:01:35]} 14. Qa4 {[%emt 0:00:13]} O-O {[%emt 0:01:11]} 15. Ra1 {[%emt 0:00:06]} cxb3 {[%emt 0:02:01]} 16. cxb3 {[%emt 0:00:40]} Nxb3 {[%emt 0:03:15]} 17. Qxb3 {[%emt 0:00:03]} Ne4 {[%emt 0:04:31]} 18. Ne5 {[%emt 0:00:30]} Nc3 {[%emt 0:02:05]} 19. Bd3 {[%emt 0:00:24]} Bb7 {[%emt 0:05:16]} 20. Nc6 {[%emt 0:03:16]} Bxc6 {[%emt 0:00:45]} 21. bxc6 {[%emt 0:00:02]} Bd6 {[%emt 0:02:59]} 22. c7 {[%emt 0:01:30]} Qxc7 {[%emt 0:02:04]} 23. Bxd6 {[%emt 0:01:45]} Qxd6 {[%emt 0:00:13]} 24. Ra6 {[%emt 0:00:09]} Qb8 {[%emt 0:03:46]} 25. g3 {[%emt 0:03:48]} Rc8 {[%emt 0:03:13]} 26. Kg2 {[%emt 0:00:21]} 1/2-1/2

[Event "Vasteras Open Minor 2018"]
[Site "Vasteras"]
[Date "2018.09.30"]
[Round "8"]
[White "Flykt, Gabriel"]
[Black "Davidsson, Joshua"]
[Result "0-1"]
[ECO "A17"]
[WhiteElo "1584"]
[BlackElo "1500"]
[Annotator "NA"]
[PlyCount "126"]
[EventDate "2018.09.28"]
[EventCountry "SWE"]
[SourceTitle "playchess.com"]
[Source "ChessBase"]
[SourceQuality "1"]
[TimeControl "5400+30"]

1. c4 {[%emt 0:00:00]} e6 {[%emt 0:00:31]} 2. Nc3 {[%emt 0:01:03]} Nf6 {[%emt 0:00:24]} 3. g3 {[%emt 0:01:31]} Be7 {[%emt 0:00:58]} 4. Bg2 {[%emt 0:00:19]} c5 {[%emt 0:02:25]} 5. e4 {[%emt 0:00:49]} d6 {[%emt 0:00:24]} 6. d3 {[%emt 0:00:33]} Nc6 {[%emt 0:00:13]} 7. Nge2 {[%emt 0:00:19]} Bd7 {[%emt 0:01:14]} 8. O-O {[%emt 0:02:42]} O-O {[%emt 0:00:53]} 9. h3 {[%emt 0:00:47]} Nd4 {[%emt 0:01:38]} 10. Be3 {[%emt 0:01:20]} e5 {[%emt 0:08:26]} 11. f4 {[%emt 0:01:53]} h6 {[%emt 0:02:52]} 12. Qd2 {[%emt 0:00:46]} Nh7 {[%emt 0:00:55]} 13. Nd5 {[%emt 0:01:37]} f5 {[%emt 0:01:02]} 14. Nec3 {[%emt 0:06:02]} Nf6 {[%emt 0:03:36]} 15. Kh2 {[%emt 0:03:01]} Nxd5 {[%emt 0:01:26]} 16. Nxd5 {[%emt 0:00:15]} Bc6 {[%emt 0:00:31]} 17. fxe5 {[%emt 0:08:22]} dxe5 {[%emt 0:01:26]} 18. Nxe7+ {[%emt 0:00:16]} Qxe7 {[%emt 0:00:08]} 19. Bxd4 {[%emt 0:00:09]} exd4 {[%emt 0:00:46]} 20. exf5 {[%emt 0:00:13]} Bxg2 {[%emt 0:00:33]} 21. Kxg2 {[%emt 0:00:36]} Qd6 {[%emt 0:00:51]} 22. Rae1 {[%emt 0:06:39]} Rae8 {[%emt 0:05:29]} 23. Rf2 Re5 24. Qf4 {[%emt 0:07:10]} Qc6+ {[%emt 0:00:40]} 25. Re4 Rexf5 26. Qxf5 {[%emt 0:02:04]} Rxf5 {[%emt 0:00:56]} 27. Rxf5 {[%emt 0:00:08]} Qa4 {[%emt 0:00:16]} 28. Rxc5 {[%emt 0:02:26]} Qc2+ 29. Kf3 {[%emt 0:02:20]} Qxd3+ {[%emt 0:02:46]} 30. Kf4 {[%emt 0:02:13]} Qf1+ {[%emt 0:11:31]} 31. Kg4 {[%emt 0:11:07]} Qf6 32. Rf4 Qe6+ {[%emt 0:02:08]} 33. Kf3 d3 34. Re4 {[%emt 0:08:06]} Qxh3 {[%emt 0:01:51]} 35. Rd5 {[%emt 0:00:59]} Qf1+ {[%emt 0:02:41]} 36. Ke3 {[%emt 0:03:59]} Qe2+ {[%emt 0:01:41]} 37. Kd4 {[%emt 0:02:38]} Qf2+ {[%emt 0:00:32]} 38. Kxd3 {[%emt 0:00:19]} Qxg3+ {[%emt 0:00:19]} 39. Re3 {[%emt 0:01:57]} Qg6+ {[%emt 0:00:16]} 40. Kc3 {[%emt 0:00:38]} a6 {[%emt 0:00:34]} 41. Ree5 {[%emt 0:01:29]} Qc6 {[%emt 0:01:02]} 42. Kd4 {[%emt 0:01:32]} Kf7 {[%emt 0:00:47]} 43. b3 {[%emt 0:00:39]} g5 {[%emt 0:00:34]} 44. Rf5+ {[%emt 0:01:46]} Kg6 {[%emt 0:00:18]} 45. Rf1 {[%emt 0:00:52]} b5 {[%emt 0:01:09]} 46. c5 {[%emt 0:00:49]} Qc8 {[%emt 0:00:40]} 47. Rd6+ {[%emt 0:01:28]} Kg7 {[%emt 0:00:05]} 48. Rff6 {[%emt 0:02:06]} Qg4+ {[%emt 0:00:38]} 49. Ke5 {[%emt 0:00:30]} Qe2+ {[%emt 0:00:56]} 50. Kd5 {[%emt 0:02:00]} Qg2+ {[%emt 0:01:39]} 51. Ke6 {[%emt 0:02:31]} Qe4+ {[%emt 0:00:10]} 52. Kd7 {[%emt 0:00:21]} Qb7+ {[%emt 0:00:08]} 53. Kd8 {[%emt 0:02:54]} Qb8+ {[%emt 0:00:11]} 54. Ke7 {[%emt 0:01:15]} Qc7+ {[%emt 0:00:21]} 55. Rd7 {[%emt 0:01:59]} Qxc5+ {[%emt 0:01:32]} 56. Ke6+ {[%emt 0:00:14]} Kg8 {[%emt 0:00:21]} 57. Rg6+ {[%emt 0:00:36]} Kh8 {[%emt 0:00:31]} 58. Rxh6+ {[%emt 0:00:07]} Kg8 {[%emt 0:00:19]} 59. Rg6+ {[%emt 0:02:31]} Kh8 {[%emt 0:00:28]} 60. Kf7 {[%emt 0:02:51]} Qf5+ {[%emt 0:00:14]} 61. Rf6 {[%emt 0:01:14]} Qxd7+ {[%emt 0:00:02]} 62. Kg6 {[%emt 0:00:04]} Qg7+ {[%emt 0:01:24]} 63. Kf5 {[%emt 0:00:42]} Qxf6+ 0-1

[Event "Vasteras Open Minor 2018"]
[Site "Vasteras"]
[Date "2018.09.30"]
[Round "8"]
[White "Olsson, Dick"]
[Black "Tolstoy, Anastasia"]
[Result "1-0"]
[ECO "C45"]
[WhiteElo "1554"]
[BlackElo "1228"]
[Annotator "NA"]
[PlyCount "47"]
[EventDate "2018.09.28"]
[EventCountry "SWE"]
[SourceTitle "playchess.com"]
[Source "ChessBase"]
[SourceQuality "1"]
[TimeControl "5400+30"]

1. e4 {[%emt 0:00:00]} e5 {[%emt 0:00:00]} 2. Nf3 {[%emt 0:00:00]} Nc6 {[%emt 0:00:00]} 3. d4 {[%emt 0:00:01]} exd4 {[%emt 0:00:53]} 4. Nxd4 {[%emt 0:00:10]} Bc5 {[%emt 0:00:52]} 5. Be3 {[%emt 0:00:24]} Bb6 {[%emt 0:01:06]} 6. Bc4 {[%emt 0:02:26]} Nge7 {[%emt 0:03:27]} 7. Nc3 {[%emt 0:06:28]} d6 {[%emt 0:03:55]} 8. O-O {[%emt 0:02:10]} O-O {[%emt 0:00:50]} 9. Re1 {[%emt 0:02:14]} Kh8 {[%emt 0:02:29]} 10. Nd5 {[%emt 0:02:11]} f5 {[%emt 0:02:34]} 11. Nxb6 {[%emt 0:02:09]} axb6 {[%emt 0:00:20]} 12. Ne6 {[%emt 0:01:28]} Bxe6 {[%emt 0:00:13]} 13. Bxe6 {[%emt 0:00:03]} Rf6 {[%emt 0:01:51]} 14. exf5 {[%emt 0:01:06]} h6 {[%emt 0:03:01]} 15. Qd3 {[%emt 0:02:07]} Qf8 {[%emt 0:06:25]} 16. g4 {[%emt 0:06:07]} Ne5 {[%emt 0:00:34]} 17. Qe4 {[%emt 0:00:05]} Qd8 {[%emt 0:02:09]} 18. g5 {[%emt 0:01:15]} hxg5 {[%emt 0:00:39]} 19. Bxg5 {[%emt 0:00:24]} Rxe6 {[%emt 0:01:10]} 20. fxe6 {[%emt 0:00:27]} N5c6 {[%emt 0:00:38]} 21. Qh4+ {[%emt 0:00:32]} Kg8 {[%emt 0:00:12]} 22. Bxe7 {[%emt 0:00:22]} Nxe7 {[%emt 0:00:02]} 23. Re3 {[%emt 0:00:46]} Qf8 {[%emt 0:00:18]} 24. Rh3 {[%emt 0:01:08]} 1-0